Cogmind - Beta 14 @@@ ROGUE MODE // 2024.08.19 @ 21:07:14 Player: jimmyl Result: Destroyed by B-75 Beast with Heavy Plasma Cannon Performance ------------- Evolutions (1) 500 Regions Visited (4) 800 Robots Destroyed (99) 495 Value Destroyed (2810) 2810 Prototype IDs (5) 100 Alien Tech Used (0) 0 Bonus (416) 416 TOTAL SCORE: 5121 Bonus ------- High Alert Combat Kills 216 Entered Garrisons 200 Cogmind --------- Core Integrity 0/400 Matter 300/300 Energy 100/100 System Corruption 0% Temperature Cool (12) Movement Treading (240) Ox1 Location -9/Garrison Parts ------- > --- POWER (1) -------- (None) > --- PROPULSION (4) --- Improved Treads > --- UTILITY (2) ------ Heat Sink Large Storage Unit > --- WEAPON (2) ------- Beam Rifle Advanced Beam Cannon > --- INVENTORY (15) --- Large Battery (200) Structural Scanner Sensor Array Signal Interpreter Light Armor Plating Light Armor Plating Hardened Light Armor Plating Improved EM Shotgun Beam Rifle Mini Grenade Launcher Plasma Cutter Peak State ------------ > --- POWER ------------ Improved Ion Engine > --- PROPULSION ------- Improved Treads Improved Treads Improved Treads Compact Wheel > --- UTILITY ---------- Cooling System Large Storage Unit > --- WEAPON ----------- Advanced Beam Cannon Advanced Beam Cannon > --- INVENTORY -------- Improved Ion Engine Heat Sink Large Battery Structural Scanner Sensor Array Signal Interpreter Light Armor Plating Light Armor Plating Hardened Light Armor Plating Improved EM Shotgun Beam Rifle Beam Rifle Mini Grenade Launcher Plasma Cutter [Rating: 20] Favorites ----------- Power Improved Ion Engine Engine Improved Ion Engine Propulsion Improved Treads Treads Improved Treads Leg Aluminum Leg Wheel Compact Wheel Utility Large Storage Unit Device Heat Sink Storage Large Storage Unit Weapon Beam Rifle Energy Gun Beam Rifle Energy Cannon Advanced Beam Cannon Ballistic Gun Assault Rifle Launcher Mini Grenade Launcher Special Weapon Plasma Cutter Build | -11 -10 -9 -9 -9 ------- Run | Yrd Mat Mat Sto Gar Slots Evolved 2 | . . 2 . . Power . | . . . . . Propulsion 2 | . . 2 . . Utility . | . . . . . Weapon . | . . . . . Parts Attached 48 | . 14 9 18 7 Power 7 | . 2 1 3 1 Engine 7 | . 2 1 3 1 Core . | . . . . . Reactor . | . . . . . Propulsion 14 | . 4 5 3 2 Treads 11 | . 4 3 2 2 Leg . | . . . . . Wheel 3 | . . 2 1 . Hover . | . . . . . Flight . | . . . . . Utility 9 | . 5 1 2 1 Device 5 | . 1 1 2 1 Storage 4 | . 4 . . . Processor . | . . . . . Hackware . | . . . . . Protection . | . . . . . Artifact . | . . . . . Weapon 18 | . 3 2 10 3 Energy Gun 9 | . 2 2 4 1 Energy Cannon 4 | . . . 3 1 Ballistic Gun 2 | . 1 . 1 . Ballistic Cannon . | . . . . . Launcher 1 | . . . . 1 Special Weapon 2 | . . . 2 . Impact Weapon . | . . . . . Slashing Weapon . | . . . . . Piercing Weapon . | . . . . . Special Melee Weapon . | . . . . . Unidentified Prototypes 1 | . . . 1 . Parts Lost 13 | . 3 2 1 7 Power 3 | . 1 . . 2 Propulsion 7 | . 1 1 1 4 Utility 2 | . . 1 . 1 Weapon 1 | . 1 . . . Highest Loss Streak 2 | . 1 2 1 2 To Critical Strikes . | . . . . . Average Slot Usage (%) 88 | . 96 84 98 78 Engine 10 | . 13 11 10 8 Treads 21 | . 21 21 21 21 Leg 1 | . 4 . . . Wheel 7 | . . 7 21 4 Device 10 | . 11 10 10 10 Storage 12 | . 15 11 11 11 Energy Gun 15 | . 27 22 14 3 Energy Cannon 7 | . . . 6 18 Peak Build Rating 20 | . 8 15 19 20 Average Rating 12 | . 6 11 15 15 On Entrance 10 | 6 6 8 15 19 Naked Turns . | . . . . . Heaviest Build 37 | 11 29 34 37 37 Greatest Support 69 | 20 40 63 46 69 Greatest Overweight (x) 2 | . 1 1 2 2 Average Overweight (x) . | . . . . . Largest Inventory Capacity 15 | . 15 15 15 15 Average Capacity 14 | . 14 15 15 15 Most Carried 15 | . 11 15 15 15 Average Carried 12 | . 7 13 13 13 Final Capacity 15 | 8 15 15 15 15 Final Carried 15 | 6 10 14 15 11 Class Distribution -------------------- 91% | Mutant 8% | Scavenger-Mutant Dominant Class ---------------- Mutant | -10/Materials Mutant | -9/Materials Mutant | -9/Storage Mutant | -9/Garrison Resources | -11 -10 -9 -9 -9 ----------- Run | Yrd Mat Mat Sto Gar Matter Collected 681 | 194 158 83 180 66 Remotely . | . . . . . Salvage Created 3551 | . 868 642 1118 923 Parts 201 | . 39 38 60 64 Haulers Intercepted 8 | . 2 . 6 . Recyclers Shooed 4 | . 2 . 2 . Parts Field Recycled . | . . . . . Retrieved Matter . | . . . . . Parts Self-Destructed . | . . . . . Prevented . | . . . . . Kills | -11 -10 -9 -9 -9 ------- Run | Yrd Mat Mat Sto Gar Combat Hostiles Destroyed 77 | . 17 14 17 29 Guns 43 | . 16 14 11 2 Cannons 26 | . . . 3 23 AOE 5 | . . . 2 3 Classes Destroyed 9 | . 5 2 2 . Worker 2 | . . . 2 . Hauler 8 | . 2 . 6 . Recycler 2 | . 1 . 1 . Mechanic 1 | . . . 1 . Operator 2 | . . 1 1 . Watcher 7 | . 3 2 2 . Swarmer 18 | . 3 . 6 9 Grunt 47 | . 14 11 4 18 Sentry 12 | . . 3 7 2 Best Kill Streak 10 | . 5 6 10 4 Combat Bots Only 6 | . 4 6 4 4 Max Kills in Single Turn 3 | . 2 1 3 2 Gunslinging 1 | . 1 . . . Exploded 2 | . . . 2 2 Melee . | . . . . . Uniques/NPCs Destroyed . | . . . . . Combat | -11 -10 -9 -9 -9 -------- Run | Yrd Mat Mat Sto Gar Hostile Shots Fired 327 | . 95 57 71 104 Missed 94 | . 26 16 25 27 Damage Taken 2918 | . 805 537 561 1015 Core 549 | . 122 142 121 164 Absorbed by Shields . | . . . . . Regen/Repaired (Parts) 150 | . . . 150 . Core Remaining (%) 75 | 100 51 . . . Volleys Fired 286 | . 81 45 83 77 Largest 2 | . 2 2 2 2 Hottest 136 | . 90 112 136 136 Shots Fired 568 | . 161 90 165 152 Gun 403 | . 161 90 133 19 Cannon 163 | . . . 32 131 Launcher 2 | . . . . 2 Special . | . . . . . Kinetic 4 | . 4 . . . Thermal 562 | . 157 90 165 150 Explosive 2 | . . . . 2 Electromagnetic . | . . . . . Robot Hit Streak 15 | . 15 8 13 11 Robot Miss Streak 4 | . 4 2 4 4 Penetration Max . | . . . . . Secondary Targets 9 | . 3 2 4 . Max Gunslinging Chain 1 | . 1 1 1 . Shots Hit Robots 349 | . 109 62 97 81 Core Hits 141 | . 43 24 38 36 Critical Kills 2 | . . . 1 1 Critical Parts Destroyed . | . . . . . Critical Strikes 21 | . 7 5 6 3 Burn 19 | . 7 5 5 2 Meltdown 2 | . . . 1 1 Melee Attacks . | . . . . . Impact . | . . . . . Slashing . | . . . . . Piercing . | . . . . . Sneak Attacks . | . . . . . Combat Hostiles . | . . . . . Follow-up Attacks . | . . . . . Damage Inflicted 5928 | . 1349 904 1785 1890 Guns 3815 | . 1336 901 1335 243 Cannons 1709 | . . . 250 1459 Explosions 388 | . . . 200 188 Melee . | . . . . . Ramming 16 | . 13 3 . . Kinetic 28 | . 28 . . . Thermal 5496 | . 1308 901 1585 1702 Explosive 388 | . . . 200 188 Electromagnetic . | . . . . . Impact . | . . . . . Slashing . | . . . . . Piercing . | . . . . . Highest Corruption . | . . . . . Average Corruption . | . . . . . Corruption Purged . | . . . . . Corruption Blocked . | . . . . . Overload Shots . | . . . . . Overflow Damage 15 | . . . . 15 Projectiles 15 | . . . . 15 Explosions . | . . . . . Melee . | . . . . . Knockbacks . | . . . . . Impact . | . . . . . Kinetic . | . . . . . Secondary . | . . . . . Self-Inflicted Damage 78 | . . . . 78 Shots 2 | . . . . 2 Rammed 3 | . 1 2 . . Targets Rammed 4 | . 2 2 . . Kicked 1 | . 1 . . . Crushed . | . . . . . Highest Temperature 222 | . 132 222 90 122 Average Temperature 33 | . 37 56 21 19 Received Heat Transfer 1059 | . 378 255 144 282 Siege Activations . | . . . . . Robots Corrupted . | . . . . . Combat Hostiles . | . . . . . Parts Fried . | . . . . . Impact Corruptions . | . . . . . Robots Melted 4 | . 1 . 2 1 Combat Hostiles 3 | . 1 . 1 1 Parts Melted 36 | . 11 10 11 4 Heat Transferred 13550 | . 3830 2508 4107 3105 Parts Sabotaged . | . . . . . Parts Stolen . | . . . . . Parts Stripped . | . . . . . Power Chain Reactions . | . . . . . Alert | -11 -10 -9 -9 -9 ------- Run | Yrd Mat Mat Sto Gar Peak Influence 1177 | . 391 303 355 1177 Initial 233 | . . 84 85 233 Average 395 | . 174 174 184 841 Maximum Alert Level 4 | . 1 1 1 4 Low Security (%) 34 | . 45 58 50 . Level 1 35 | . 54 41 49 7 Level 2 5 | . . . . 17 Level 3 16 | . . . . 50 Level 4 7 | . . . . 24 Level 5 . | . . . . . High Security . | . . . . . Max Security . | . . . . . Squads Dispatched 9 | . 4 3 2 . Investigation 5 | . 2 2 1 . Extermination . | . . . . . Reinforcement 4 | . 2 1 1 . Assault . | . . . . . Garrison . | . . . . . Intercept . | . . . . . Searches Triggered . | . . . . . Construction Impeded . | . . . . . Haulers Reinforced . | . . . . . Active Scanning Responses . | . . . . . Cargo Convoy Interrupts . | . . . . . Stealth | -11 -10 -9 -9 -9 --------- Run | Yrd Mat Mat Sto Gar Distress Signals 9 | . 4 1 4 . Communications Jammed . | . . . . . Distress Signals . | . . . . . Times Spotted 108 | . 25 18 27 38 Peak Tracking Total 5 | . 5 5 5 4 Tactical Retreats 10 | . 1 2 3 4 Traps | -11 -10 -9 -9 -9 ------- Run | Yrd Mat Mat Sto Gar Traps Triggered 8 | . 3 1 . 4 Indirectly . | . . . . . Trap Hack Attempts . | . . . . . Triggered . | . . . . . Disarmed . | . . . . . Reprogrammed . | . . . . . Reused . | . . . . . Traps Extracted . | . . . . . Installed . | . . . . . Triggered . | . . . . . Machines | -11 -10 -9 -9 -9 ---------- Run | Yrd Mat Mat Sto Gar Machines Disabled 6 | . . . 4 2 Max in Single Turn 2 | . . . 1 2 Phase Generator 1 | . . . . 1 Machines Repaired . | . . . . . Machines Dismantled 2 | . . . 2 . Machines Sabotaged . | . . . . . Overloaded Fab Kills . | . . . . . Hacking | -11 -10 -9 -9 -9 --------- Run | Yrd Mat Mat Sto Gar Machines Accessed 14 | . 4 1 8 1 Terminals 12 | . 4 1 6 1 Fabricators . | . . . . . Repair Stations 1 | . . . 1 . Recycling Units . | . . . . . Scanalyzers . | . . . . . Garrison Access 1 | . . . 1 . Total Hacks 46 | . 12 2 31 1 Successful 28 | . 6 1 20 1 Failed 18 | . 6 1 11 . Catastrophic 2 | . . . 2 . Database Lockouts . | . . . . . Manual 15 | . 4 1 10 . Terminals 36 | . 12 2 21 1 Fabricators . | . . . . . Repair Stations 9 | . . . 9 . Recycling Units . | . . . . . Scanalyzers . | . . . . . Garrison Access 1 | . . . 1 . Terminal Hacks 19 | . 6 1 11 1 Robot Analysis 3 | . 1 . 2 . Prototype ID Bank 2 | . . . 2 . Branch Access Points 1 | . . 1 . . Emergency Access Points 4 | . 1 . 2 1 Alert Level 2 | . 1 . 1 . Unreport Threat 1 | . . . 1 . Locate Traps 1 | . . . 1 . Recall Investigation 1 | . . . 1 . Hauler Manifests 1 | . 1 . . . Zone Layout 3 | . 2 . 1 . Fabricator Hacks . | . . . . . Repair Station Hacks 8 | . . . 8 . Scan Component 4 | . . . 4 . Repair 4 | . . . 4 . Recycling Unit Hacks . | . . . . . Scanalyzer . | . . . . . Garrison Access Hacks 1 | . . . 1 . Unlock Access 1 | . . . 1 . Unauthorized Hacks . | . . . . . Terminals . | . . . . . Fabricators . | . . . . . Repair Stations . | . . . . . Recycling Units . | . . . . . Scanalyzers . | . . . . . Garrison Access . | . . . . . Data Cores Recovered 1 | . . . 1 . Used 1 | . . . 1 . Hacking Detections 11 | . 2 1 7 1 Full Trace Events 4 | . 2 1 1 . Feedback Events . | . . . . . Feedback Blocked . | . . . . . Robot Schematics Acquired . | . . . . . Robots Built . | . . . . . Authchips . | . . . . . Time . | . . . . . Total Robot Build Rating . | . . . . . Part Schematics Acquired . | . . . . . Parts Built . | . . . . . Authchips . | . . . . . Time . | . . . . . Total Part Build Rating . | . . . . . Parts Repaired 4 | . . . 4 . Time 122 | . . . 122 . Parts Recycled . | . . . . . Recycled Matter . | . . . . . Retrieved Matter . | . . . . . Retrieved Components . | . . . . . Parts Scanalyzed . | . . . . . Part Schematics Acquired . | . . . . . Parts Damaged . | . . . . . Bothacking | -11 -10 -9 -9 -9 ------------ Run | Yrd Mat Mat Sto Gar Used RIF Installer . | . . . . . Robots Hacked . | . . . . . Non-combat . | . . . . . Combat . | . . . . . Robot Hacks Applied . | . . . . . Relay Couplers Released . | . . . . . Fabnet Peak Effective % . | . . . . . Robots Rewired . | . . . . . Allies Hacked . | . . . . . Hacks Repelled . | . . . . . Allies | -11 -10 -9 -9 -9 -------- Run | Yrd Mat Mat Sto Gar Total Allies . | . . . . . Largest Group . | . . . . . Highest-Rated Group . | . . . . . Highest-Rated Ally . | . . . . . Total Orders . | . . . . . Ally Attacks . | . . . . . Total Damage . | . . . . . Kills . | . . . . . Allies Corrupted . | . . . . . Allies Melted . | . . . . . Intel | -11 -10 -9 -9 -9 ------- Run | Yrd Mat Mat Sto Gar Robot Analysis Total 3 | . 1 . 2 . Derelict Logs Recovered . | . . . . . Drone Launches . | . . . . . Drone Recoveries . | . . . . . Exploration | -11 -10 -9 -9 -9 ------------- Run | Yrd Mat Mat Sto Gar Turns Passed 4827 | . 1242 878 1122 1585 Spaces Moved 2341 | 1 564 497 523 756 Core . | . . . . . Treads 1131 | . 438 272 15 406 Legs 127 | 1 126 . . . Wheels 1083 | . . 225 508 350 Hover . | . . . . . Flight . | . . . . . Fastest Speed 100 | 120 120 115 100 105 Average Speed 142 | 120 167 140 110 147 Slowest Speed 240 | 120 240 240 160 240 Overloaded Moves . | . . . . . Propulsion Burnouts . | . . . . . Robots Hopped . | . . . . . Cave-ins Triggered . | . . . . . Exploration Rate (%) 60 | 2 82 46 92 78 Regions Visited 4 Branch Regions 1 Pre-discovered Areas . | . . . . . Known Exits Taken 2 | . . 1 1 . Unknown Exits Taken 2 | 1 1 . . . Scrap Searched . | . . . . . Spaces Dug . | . . . . . Terrain Destroyed 101 | . . . 10 91 Melee . | . . . . . Projectile . | . . . . . AOE 101 | . . . 10 91 Terrain Rammed . | . . . . . Walls Destroyed . | . . . . . Machines Disabled . | . . . . . Actions | -11 -10 -9 -9 -9 --------- Run | Yrd Mat Mat Sto Gar Total 3230 | . 702 588 866 1074 Wait 458 | . 18 19 207 214 Move 2338 | . 563 496 523 756 Hop . | . . . . . Pick Up 28 | . 12 9 7 . Fast Attach 21 | . 5 6 9 1 Attach 16 | . 6 2 4 4 Detach 2 | . 1 . 1 . Swap 11 | . 3 1 5 2 Drop 32 | . 11 8 11 2 Fire 286 | . 81 45 83 77 Melee . | . . . . . Ram . | . . . . . Kick 1 | . 1 . . . Crush 3 | . 1 2 . . Escape Stasis 18 | . . . . 18 Rewire . | . . . . . Trap . | . . . . . Miscellaneous 16 | . . . 16 . Route ------- -11/Scrapyard -10/Materials (discovered 3 exits: *Mat x3) -9/Materials (discovered 5 exits: [*Mat] / *Min x2 / *Sto x2) -9/Storage (discovered 2 exits: [*Rec] / Gar) -9/Garrison (discovered 2 exits: [*Rec x2]) History --------- Turn | Location | Event 1 | -11/Scrapyard | Discovered new exit (range 0) 1 | -11/Scrapyard | Entered Materials 257 | -10/Materials | Discovered new exit (range 10) 306 | -10/Materials | Build established: Mutant 666 | -10/Materials | Discovered new exit (range 11) 1227 | -10/Materials | Discovered new exit (range 5) 1243 | -10/Materials | Entered another Materials area 1243 | -9/Materials | Evolved 2 slots: Propulsion x2 1263 | -9/Materials | Build established: Scavenger-Mutant 1610 | -9/Materials | Discovered new exit (range 3) 1658 | -9/Materials | Build established: Mutant 1828 | -9/Materials | Discovered new exit (range 16) 2025 | -9/Materials | Discovered new exit (range 16) 2047 | -9/Materials | Identified exit to Mines 2047 | -9/Materials | Identified exit to Storage 2121 | -9/Materials | Entered Storage 2480 | -9/Storage | Core integrity fell below 50% 2748 | -9/Storage | Repaired Beam Rifle 2781 | -9/Storage | Repaired Imp. Treads 2809 | -9/Storage | Repaired Ion Engine 2842 | -9/Storage | Repaired Cooling System 2860 | -9/Storage | Used back door to open Recycling access 2860 | -9/Storage | Discovered new exit (range 5) 3243 | -9/Storage | Identified exit to Garrison 3243 | -9/Storage | Entered Garrison 3323 | -9/Garrison | Triggered checkpoint 3439 | -9/Garrison | Spotted B-75 Beast 3439 | -9/Garrison | Spotted B-75 Beast 3523 | -9/Garrison | Triggered checkpoint 3558 | -9/Garrison | Triggered checkpoint 3643 | -9/Garrison | Core integrity fell below 20% 3714 | -9/Garrison | Discovered new exit (range 14) 3843 | -9/Garrison | Triggered checkpoint 3960 | -9/Garrison | Discovered new exit (range 10) 4056 | -9/Garrison | Phase Generator disabled 4180 | -9/Garrison | Triggered checkpoint 4311 | -9/Garrison | Triggered checkpoint 4828 | -9/Garrison | Destroyed by B-75 Beast with Heavy Plasma Cannon Last Messages --------------- 04180_ Beams of light sweep through the air. An alarm sounds. 04195_ Cooling System destroyed. 04197_ Destroyed Heat Sink. 04197_ G-34 Mercenary destroyed. 04208_ Acquired 10 matter. 04215_ G-34 Mercenary destroyed. 04367_ Dropped Adv. Beam Cannon. 04441_ B-75 Beast springs to life. 04443_ ALERT: Garrison interior compromised. 04451_ B-75 Beast springs to life. 04451_ Imp. Ion Engine destroyed. 04513_ Acquired 6 matter. 04514_ Imp. Ion Engine destroyed. 04694_ Imp. Treads destroyed. 04699_ S-10 Pest suffers critical hit (Burn). 04699_ S-10 Pest destroyed. 04776_ Flight Unit melted. 04776_ S-10 Pest destroyed. 04818_ B-75 Beast suffers critical hit (Burn). Map ----- +----------------------------------------------------+ | ????????????????????????? ???????? | | ????????????????????????? ???????? | | ????????????????????????? ???????? | | ????????????????????????? ???????? | | ????????????????????????? ???????? | | ??????????????????###???# #??????? | | ?????????????????? ??? ??#???? | | ??????????????????# #???# #??????? | | ??????????????????# #???# #??????? | | ????????#####?????# #???# #??????? | | ????????# #?????# #???# #??????? | | ????????# ####### ##### ######## | | ????????# % %! ^^ | | ????????# [ ^^ | | ????????# % | | ????????####### ############# ### | | ??????????????# #???????????# #?? | | ??????????????# #???????????# #?? | | ??????????????# #???????????# #?? | | ??????????##### ######??????# #?? | | ?????###### #??????# #?# | | ??####!! ]# ######## #?# | | ??#!!#!! ]# / #?# | | ??#!!### ## / #?# | | ??# =# ######## #?# | | ??#[[# %@# #??????# #?# | | ??#### = #??????# #?# | | ?????# #BB #??????# ### | | ??# #BB "####### | | ??#!!### ## + ### | | ??#!!??! !# + ### | | ??##??!! !# ######## | | ?????###### #??????# | | ??????????### ###??????###### | | ???????????# #????????????# | | ???????????# #????????????# | | ???????????##########????????????# | | ?????????????????????????????????? | | ?????????????????????????????????? | | ?????????????????????????????????? | | ????????????????????????????????## | | ????????????????????????????????# | | ????????????????????????????????# | | ????????????????????????????????# | | ????????????????????????????????# | | ????????????????????????????????# | | ??????????????????????########### | | ??????????????????????# | | ??????????????????????# ######### | | ??????????????????????" ????????# | +----------------------------------------------------+ Best States ------------- Heat Dissipation 50 Energy Generation 12 Energy Capacity 265 Matter Stores 315 Matter Capacity 350 Sight Range 16 Terrain Scan Density 10 Evasion (%) 55 Recoil Reduction 3 Item Schematics ----------------- None Robot Schematics ------------------ None Fabricated ------------ Nothing Alien Tech Used ----------------- None Achievements -------------- None Challenges ------------ None Game ------ Seed GhostCobblerMagmablaster Manual? 0 Play Time 00:31:07 Cumulative 102.1 hours Start 2024.08.19 @ 20:37:00 End 2024.08.19 @ 21:07:14 Sessions 1 Manual Loads 0 Difficulty Rogue Special Mode None Game No. 174 Rogue 173 Adventurer 1 Explorer 0 Win Type - Total 0 Types 0/0/0/0/0/0/0/0/0 Lore% 59 Gallery% 63 Achievement% 48 Wizard Run 0 Options --------- Layout 1 ASCII 0 Keyboard 0 Movement Mouse Keybinds 0 Fullscreen 2 Font 20/SmallcapsGlow Map View 54x42 Zoom Use 0% Tactical HUD 1 Map Filters NONE Filters NONE Steam 0 RUN: 75903f0c-a94e-44cf-a8f7-57248fd56613